bitfinex/quotes_ETHUSD_20220113
["timestamp","ask_amount","ask_price","bid_price","bid_amount"]
[1642098073517,0.00454739,3294.0,3293.9,0.44]
[1642098074718,0.00454739,3294.0,3293.9,3.84]
[1642098074917,0.00454739,3294.0,3293.9,0.44]
[1642098075117,1.27033391,3294.0,3293.9,0.44]
[1642098075518,0.00454739,3294.0,3293.9,0.44]
[1642098076674,1.30979975,3294.0,3293.9,0.44]
[1642098078776,0.00454739,3294.0,3293.9,0.44]
[1642098079379,3.08637629,3294.1,3293.9,0.44]
[1642098080216,2.34897771,3294.0,3293.9,0.44]
[1642098082717,1.56583473,3294.1,3293.9,0.44]
[1642098082918,1.56583473,3294.1,3294.0,0.75878]
[1642098084492,0.00113685,3294.2,3294.0,0.75878]
[1642098084893,0.00113685,3294.2,3293.9,1.1987787]
[1642098085895,0.00113685,3294.2,3294.0,0.75879]
[1642098086095,2.34897771,3294.1,3294.0,0.75879]
[1642098086494,2.34897771,3294.1,3293.6,3.1564217]
[1642098086495,2.34897771,3294.1,3293.6,1.51752]
[1642098086697,2.64897771,3294.1,3293.4,3.4754064]
[1642098086897,2.77027771,3294.1,3293.7,0.00170527]
[1642098087320,0.4213,3294.1,3293.7,0.00170527]
[1642098087519,1.24199129,3294.0,3293.3,0.00397896]
[1642098088021,2.30098129,3294.0,3293.3,0.76292896]
[1642098088218,8.04272231,3294.0,3293.3,0.76292896]
[1642098088420,8.04272231,3294.0,3293.4,0.00341054]
[1642098088918,7.28373231,3294.0,3293.5,0.7589187]
[1642098089218,7.28373231,3294.0,3293.6,0.00227369]
[1642098089421,6.04174102,3294.0,3293.6,0.00227369]
[1642098089623,1.56603521,3293.7,3293.6,0.00227369]
[1642098089825,1.56603521,3293.7,3293.6,0.12357369]
[1642098090320,1.56603521,3293.7,3293.6,0.88242649]
[1642098090520,6.52501697,3293.9,3293.6,9.23242649]
[1642098090721,4.17596415,3293.9,3293.8,4.70878]
[1642098091171,4.17596415,3293.9,3293.8,5.9412464]
[1642098091381,4.17596415,3293.9,3293.8,0.75991685]
[1642098091570,1.56603521,3293.9,3293.8,0.75991685]
[1642098092572,1.56603521,3293.9,3293.8,4.75991685]
[1642098092971,1.56603521,3293.9,3293.8,6.0253633]
[1642098093172,1.56717206,3294.2,3293.8,6.0253633]
[1642098093371,1.56717206,3294.2,3294.0,0.7587763]
[1642098093572,1.56717206,3294.2,3294.1,0.75876]
[1642098093774,0.00113685,3294.2,3294.1,0.75876]
[1642098094373,0.00113685,3294.2,3294.1,4.60876]
[1642098095129,0.00113685,3294.2,3294.1,5.43216]
[1642098095523,0.00113685,3294.2,3294.1,11.03216]
[1642098095722,0.00113685,3294.2,3294.1,11.47216]
[1642098098127,0.007,3294.7,3294.2,11.70732284]
[1642098098328,0.01395802,3295.1,3294.2,11.70732284]
[1642098098329,2.36301084,3295.1,3294.5,11.1085127]
[1642098098589,2.36301084,3295.1,3294.6,0.57383841]
[1642098098792,2.36301084,3295.1,3294.6,1.57383841]
[1642098098985,2.36301084,3295.1,3294.7,1.31087406]
[1642098099185,2.36301084,3295.1,3294.9,1.51674]
[1642098099388,7.0465982,3295.4,3295.2,0.54067873]
[1642098099586,7.0465982,3295.4,3295.3,10.79]
[1642098099788,3.8478,3296.2,3295.3,10.79]
[1642098099789,2.34818173,3295.5,3295.3,10.79]
[1642098100189,2.34818173,3295.5,3295.4,12.46187844]
[1642098100391,2.34818173,3295.5,3295.4,14.42985844]
[1642098100586,2.35557123,3295.5,3295.4,14.42985844]
[1642098100787,3.13181208,3295.8,3295.5,10.35]
[1642098100986,3.13181208,3295.8,3295.6,0.5613]
[1642098101187,0.00113685,3295.7,3295.6,1.5613]
[1642098101388,3.13181208,3295.8,3295.7,4.3]
[1642098101586,3.13181208,3295.8,3295.7,5.74]
[1642098101786,3.7978,3296.2,3295.7,5.74]
[1642098101986,3.7978,3296.2,3295.8,1.0]
[1642098102223,0.00227369,3296.1,3295.9,0.44]
[1642098102624,0.00170527,3296.0,3295.9,0.44]
[1642098102827,0.00170527,3296.0,3295.9,1.19827]
[1642098103027,0.00170527,3296.0,3295.9,2.70532633]
[1642098103225,0.00170527,3296.0,3295.9,3.70532633]
[1642098103427,0.00170527,3296.0,3295.9,12.70532633]
[1642098103727,3.25323408,3296.7,3296.6,0.48052106]
[1642098103926,3.10323408,3296.7,3296.6,0.44]
[1642098104326,4.08812828,3296.8,3296.6,0.44]
[1642098105028,4.08812828,3296.8,3296.6,1.1981407]
[1642098105828,4.08812828,3296.8,3296.6,1.7477407]
[1642098106075,0.9848942,3296.8,3296.6,2.7477407]
[1642098106580,0.9848942,3296.8,3296.6,2.8690407]
[1642098107176,0.9848942,3296.8,3296.6,2.3194407]
[1642098107675,0.9848942,3296.8,3296.6,1.1981407]
[1642098107878,0.9848942,3296.8,3296.6,2.1981407]
[1642098107879,2.54970779,3296.8,3296.6,2.1981407]
[1642098108376,2.54970779,3296.8,3296.6,1.1981407]
[1642098108576,2.54970779,3296.8,3296.6,0.44]
[1642098108779,2.54970779,3296.8,3296.6,0.0001]
[1642098108977,2.54970779,3296.8,3296.0,0.1213]
[1642098108978,4.29426384,3296.7,3296.0,0.1213]
[1642098109179,4.93135384,3296.7,3296.0,0.1213]
[1642098109377,1.26351088,3296.5,3296.0,0.1213]
[1642098109578,1.26351088,3296.5,3296.1,1.5163985]
[1642098109822,0.00227369,3296.4,3296.1,1.5163985]
[1642098110019,0.00227369,3296.4,3296.2,0.7581947]
[1642098110220,0.00170527,3296.3,3296.2,0.7581947]
[1642098111120,0.00170527,3296.3,3295.8,0.1213]
[1642098111323,0.00170527,3296.3,3295.7,0.44]
[1642098111324,4.5945914,3296.3,3295.7,0.44]
[1642098111521,0.00113685,3296.2,3295.5,0.44758394]
[1642098111722,0.00113685,3296.2,3295.8,0.00113685]
[1642098111920,0.00113685,3296.2,3295.6,0.00227369]
[1642098112521,4.17435198,3296.2,3295.6,0.00227369]
[1642098113769,1.18547339,3295.7,3295.6,0.00227369]
[1642098114471,3.79362364,3295.7,3295.6,0.00227369]
[1642098115272,7.59362364,3295.7,3295.6,0.00227369]
[1642098115470,7.59362364,3295.7,3295.4,0.00341054]
[1642098115671,0.4213,3295.6,3295.4,0.00341054]
[1642098116273,1.1799,3295.6,3295.4,0.00341054]
[1642098116673,0.1213,3295.6,3295.1,0.00511581]
[1642098116873,4.17321513,3295.5,3295.1,0.00511581]
[1642098117073,4.17321513,3295.5,3295.2,0.1213]
[1642098117520,4.17321513,3295.5,3295.3,0.00397896]
[1642098118122,4.17321513,3295.5,3295.2,0.00454739]
[1642098118325,1.18547339,3295.7,3295.3,0.1213]
[1642098118326,2.60815025,3295.6,3295.3,0.1213]
[1642098118725,2.60815025,3295.6,3295.4,0.00341054]
[1642098118925,2.60815025,3295.6,3295.4,0.44341054]
[1642098119322,2.60815025,3295.6,3295.5,8.50284212]
[1642098119525,2.60815025,3295.6,3295.5,8.94284212]
[1642098119722,2.60815025,3295.6,3295.5,11.30667677]
[1642098119923,2.60815025,3295.6,3295.5,11.42797677]
[1642098120324,2.60815025,3295.6,3295.5,11.72797677]
[1642098120622,2.60815025,3295.6,3295.5,11.42797677]
[1642098121067,2.60815025,3295.6,3295.5,1.56414212]
[1642098121271,1.51807685,3296.2,3295.5,1.56414212]
[1642098121469,0.75961685,3296.2,3295.6,0.1213]
[1642098121670,0.00113685,3296.2,3295.6,0.56357369]
[1642098121868,0.00113685,3296.2,3295.7,0.00170527]
[1642098122068,1.38310209,3295.8,3295.7,0.00170527]
[1642098122470,2.60815025,3296.1,3295.7,0.00170527]
[1642098123371,2.60815025,3295.8,3295.7,0.00170527]
[1642098123571,4.07328511,3295.8,3295.7,0.00170527]
[1642098124072,1.46513486,3295.8,3295.7,0.00170527]
[1642098124925,4.07328511,3295.8,3295.7,0.00170527]
[1642098125124,4.07328511,3295.8,3295.3,0.00397896]
[1642098126724,2.60815025,3295.7,3295.3,1.00397896]
[1642098127125,2.60815025,3295.7,3295.4,0.00341054]
[1642098128475,2.60815025,3295.7,3295.3,0.00397896]
[1642098128669,2.60815025,3295.7,3295.4,0.7584022]
[1642098129071,2.60815025,3295.7,3295.5,0.00284212]
[1642098129669,1.24246338,3295.8,3295.5,0.00284212]
[1642098130472,2.60815025,3295.7,3295.5,0.00284212]
[1642098130674,2.60815025,3295.7,3295.3,0.00397896]
[1642098131072,2.60815025,3295.7,3295.2,0.00454739]
[1642098131270,2.60815025,3295.7,3295.2,0.44454739]
[1642098131471,2.60815025,3295.7,3295.2,1.20300739]
[1642098131674,2.60815025,3295.7,3295.3,0.00397896]
[1642098132524,2.60815025,3295.7,3295.3,0.76242256]
[1642098132723,2.60815025,3295.7,3295.4,0.75842]
[1642098132924,2.60815025,3295.7,3295.4,0.76183054]
[1642098133126,2.60815025,3295.7,3295.5,0.00284212]
[1642098133324,2.60815025,3295.7,3295.6,4.9213]
[1642098133724,2.60815025,3295.7,3295.6,5.92357369]
[1642098134330,3.75959281,3296.1,3295.6,6.68193369]
[1642098134725,3.75959281,3296.1,3295.7,1.00170527]
[1642098135126,3.75959281,3296.1,3295.8,0.00113685]
[1642098135426,3.75959281,3296.1,3295.3,4.0334304]
[1642098135427,2.60815025,3296.0,3295.7,0.00170527]
[1642098135988,2.60815025,3296.0,3295.5,0.00284212]
[1642098136584,2.60815025,3296.0,3295.4,0.00341054]
[1642098136783,2.60815025,3296.0,3295.4,0.1213]
[1642098136986,2.60815025,3296.0,3295.4,0.12471054]
[1642098137184,2.60815025,3296.0,3295.5,0.00284212]
[1642098137485,0.00113685,3296.2,3295.6,0.44]
[1642098137486,2.6092871,3296.2,3295.6,0.44]
[1642098137683,2.6092871,3296.2,3295.7,1.63777]
[1642098137983,2.6092871,3296.2,3295.8,0.44113685]
[1642098138184,2.6092871,3296.2,3295.9,0.1213]
[1642098138385,0.00113685,3296.2,3296.0,0.44]
[1642098138584,0.00113685,3296.2,3296.1,4.4213]
[1642098138784,0.00113685,3296.2,3296.1,4.8613]
[1642098139185,0.00113685,3296.2,3296.1,5.8613]
[1642098139825,0.00113685,3296.2,3296.1,6.46980612]
[1642098141024,0.00113685,3296.2,3296.1,9.76980612]
[1642098141224,0.00113685,3296.2,3296.1,6.46980612]
[1642098141424,2.60815025,3296.5,3296.4,0.75815]
[1642098141625,2.60815025,3296.5,3296.4,5.0062786]
[1642098141826,2.60815025,3296.6,3296.4,5.0062786]
[1642098143028,2.61212922,3296.7,3296.4,5.0062786]
[1642098143478,0.00341054,3296.6,3296.4,5.0062786]
[1642098143870,0.00284212,3296.5,3296.4,5.0062786]
[1642098144471,0.00284212,3296.5,3296.4,6.0062786]
[1642098145272,0.00284212,3296.5,3296.4,7.28470245]
[1642098145679,0.00284212,3296.5,3296.4,1.9562786]
[1642098145875,0.00284212,3296.5,3296.4,1.1981286]
[1642098146876,0.00284212,3296.5,3296.4,5.2481286]
[1642098148325,0.00284212,3296.5,3296.4,1.0820268]
[1642098148732,0.00284212,3296.5,3296.4,2.0820268]
[1642098148928,0.00284212,3296.5,3296.4,1.0820268]
[1642098149125,0.00284212,3296.5,3296.4,0.44]
[1642098150030,1.12856141,3296.5,3296.4,0.44]
[1642098150227,5.06892783,3296.5,3296.4,0.44]
[1642098150827,7.67707808,3296.5,3296.4,0.44]
[1642098151075,7.60205653,3296.5,3296.4,0.44]
[1642098151277,3.73671166,3296.5,3296.4,0.44]
[1642098151877,9.17405801,3296.5,3296.3,0.75825]
[1642098152077,5.30177654,3296.5,3296.1,0.7582842]
[1642098152277,0.00227369,3296.4,3296.1,0.7582842]
[1642098152477,2.61042394,3296.4,3296.1,0.7582842]
[1642098152683,0.00170527,3296.3,3296.1,0.7582842]
[1642098152878,0.00170527,3296.3,3296.1,0.75828]
[1642098153079,2.60815025,3296.4,3296.1,0.75828]
[1642098153080,0.00113685,3296.2,3296.1,1.5165675]
[1642098153279,0.00113685,3296.2,3296.1,1.6378675]
[1642098153878,0.00113685,3296.2,3296.0,1.44]
[1642098153879,3.10113685,3296.2,3296.0,0.44]
[1642098154078,0.00113685,3296.2,3296.0,0.44]
[1642098154279,1.36396786,3296.1,3296.0,0.44]
[1642098154724,0.00113685,3296.2,3296.0,0.44]
[1642098155126,0.00113685,3296.2,3296.0,1.1983139]
[1642098155429,2.60815025,3296.1,3296.0,0.44]
[1642098156926,2.60815025,3296.1,3295.8,0.00113685]
[1642098157226,1.35209741,3296.2,3295.8,0.00113685]
[1642098157827,1.35209741,3296.2,3295.9,0.75835]
[1642098158030,2.60815025,3296.1,3295.8,0.00113685]
[1642098158874,2.60815025,3296.1,3295.8,0.75948655]
[1642098159275,2.60815025,3296.1,3295.9,1.49834]
[1642098159475,2.60815025,3296.1,3296.0,7.2713]
[1642098159675,2.60815025,3296.1,3296.0,8.7113]
[1642098160074,2.55815025,3296.1,3296.0,10.08902555]
[1642098160275,0.00113685,3296.2,3296.0,10.08902555]
[1642098160476,0.00113685,3296.2,3296.0,12.36354145]
[1642098160682,0.00113685,3296.2,3296.1,6.05]
[1642098160876,0.00113685,3296.2,3296.1,6.1713]
[1642098161076,0.00113685,3296.2,3296.1,6.92946]
[1642098161489,0.00113685,3296.2,3296.1,1.87946]
[1642098161676,0.00113685,3296.2,3296.1,4.82946]
[1642098162622,0.00113685,3296.2,3296.1,5.26946]
[1642098163623,0.00113685,3296.2,3296.1,2.31946]
[1642098166073,0.00113685,3296.2,3296.1,1.5613]
[1642098166275,0.00113685,3296.2,3296.1,0.44]
[1642098167472,1.48742686,3296.2,3296.1,0.44]
[1642098167872,0.00113685,3296.2,3296.1,0.44]
[1642098168673,5.40122264,3296.4,3296.1,0.44]
[1642098168873,1.35103867,3296.3,3296.1,0.44]
[1642098169374,1.35103867,3296.3,3295.7,1.4607684]
[1642098169574,3.85652617,3296.2,3295.7,1.4607684]
[1642098169827,3.85652617,3296.2,3295.8,0.0022737]
[1642098170024,2.10948867,3296.3,3295.8,0.0022737]
[1642098170224,1.35103867,3296.3,3295.8,0.0022737]
[1642098171227,1.35103867,3296.3,3295.9,0.75837]
[1642098171627,1.35103867,3296.3,3296.0,0.00113685]
[1642098171826,2.10948867,3296.3,3296.0,0.00113685]
[1642098172227,5.5725275,3296.4,3296.0,0.00113685]
[1642098173327,1.51377071,3296.1,3296.0,0.00113685]
[1642098174375,3.8607023,3296.2,3296.0,0.00113685]
[1642098174575,5.53961372,3296.4,3296.0,0.00113685]
[1642098175077,6.29803372,3296.4,3296.0,0.00113685]
[1642098175277,5.53961372,3296.4,3296.0,0.00113685]
[1642098175679,6.98696609,3296.4,3296.0,0.00113685]
[1642098177334,0.1213,3296.3,3296.0,0.00113685]
[1642098177735,7.10862,3296.1,3296.0,0.00113685]
[1642098177935,7.22992,3296.1,3295.7,0.00284212]
[1642098178936,2.09070191,3295.9,3295.7,0.00284212]
[1642098179242,3.0713,3295.8,3295.7,0.00284212]
[1642098179835,7.27302851,3295.8,3295.7,0.00284212]
[1642098180436,3.90220171,3295.8,3295.7,0.00284212]
[1642098180636,0.75868,3295.9,3295.7,0.00284212]
[1642098180847,4.17366123,3295.8,3295.7,0.00284212]
[1642098181078,4.17366123,3295.8,3295.7,1.52290002]
[1642098181285,4.17366123,3295.8,3295.7,2.28130002]
[1642098181477,4.17366123,3295.8,3295.7,10.77969542]
[1642098181675,4.17366123,3295.8,3295.7,3.47969542]
[1642098182178,4.17366123,3295.8,3295.7,1.95963752]
[1642098182179,2.60853827,3295.8,3295.7,1.95963752]
[1642098182378,2.60853827,3295.8,3295.7,0.44284212]
[1642098183380,3.90985043,3295.8,3295.7,0.44284212]
[1642098183782,3.90985043,3295.8,3295.7,0.00284212]
[1642098183979,3.90985043,3295.8,3295.6,10.0]
[1642098184183,1.42261216,3295.8,3295.6,10.0]
[1642098184479,1.30131216,3295.8,3295.6,10.0]
[1642098185525,4.17366123,3295.7,3295.6,10.0]
[1642098187324,2.60853827,3295.7,3295.6,10.0]
[1642098188978,1.56512296,3295.7,3295.6,10.0]
[1642098189576,1.98642296,3295.7,3295.6,10.0]
[1642098190376,9.83642296,3295.7,3295.6,10.0]
[1642098190974,8.2713,3295.7,3295.6,10.0]
[1642098191578,10.7713,3295.7,3295.6,0.0001]
[1642098191876,0.75882,3295.5,3295.0,0.5]
[1642098192076,0.75881,3295.3,3295.0,0.5]
[1642098192328,8.8213,3295.2,3295.1,0.00341054]
[1642098192528,9.88011,3295.2,3295.1,0.00341054]
[1642098192731,11.01885412,3295.2,3295.1,0.00341054]
[1642098192928,12.01885412,3295.2,3295.1,0.00341054]
[1642098193128,12.01885412,3295.2,3295.1,0.00136843]
[1642098193330,11.01885412,3295.2,3295.1,0.00136843]
[1642098193529,2.31885412,3295.2,3295.1,0.00136843]
[1642098193728,1.56004412,3295.2,3295.1,0.00136843]
[1642098194329,5.41004412,3295.2,3295.1,0.00136843]
[1642098194528,6.87983827,3295.2,3295.1,0.00136843]
[1642098194728,6.75853827,3295.2,3295.1,0.00136843]
[1642098196001,2.60853827,3295.2,3295.1,0.00136843]
[1642098196487,2.60853827,3295.2,3295.1,2.867892]
[1642098196693,2.60853827,3295.2,3295.0,0.5]
[1642098196888,2.60853827,3295.2,3295.1,0.1213]
[1642098197288,2.60853827,3295.4,3295.1,0.1213]
[1642098197488,2.60853827,3295.4,3295.0,0.5]
[1642098197688,0.00113685,3295.3,3295.0,0.5]
[1642098198289,1.28137162,3295.3,3295.0,0.5]
[1642098199291,2.60853827,3295.2,3295.0,0.5]
[1642098199727,2.59114188,3295.2,3295.0,0.5]
[1642098200127,1.28137162,3295.3,3295.0,0.5]
[1642098200329,0.00113685,3295.3,3295.0,0.5]
[1642098204777,0.75992685,3295.3,3295.0,0.5]
[1642098205577,0.00113685,3295.3,3295.0,0.5]
[1642098207081,1.51873685,3295.3,3295.0,0.5]
[1642098207931,0.88123685,3295.3,3295.0,0.5]
[1642098208132,0.12243685,3295.3,3295.0,0.5]
[1642098209133,0.00113685,3295.3,3295.0,0.5]
[1642098210133,0.75996685,3295.3,3295.0,0.5]
[1642098210333,1.05996685,3295.3,3295.0,0.5]
[1642098210534,0.75996685,3295.3,3295.0,0.5]
[1642098210833,1.91484083,3295.3,3295.0,0.5]
[1642098211077,2.67364083,3295.3,3295.0,0.5]
[1642098211276,0.1213,3295.2,3295.0,0.5]
[1642098211479,5.35885,3295.1,3295.0,0.5]
[1642098211876,0.3,3295.1,3295.0,0.5]
[1642098212077,0.1213,3295.2,3295.0,0.5]
[1642098212279,0.4213,3295.2,3295.0,0.5]
[1642098213179,1.4213,3295.2,3295.0,0.5]
[1642098213377,4.55888,3295.1,3295.0,0.5]
[1642098213578,4.68018,3295.1,3295.0,0.5]
[1642098215226,4.98018,3295.1,3295.0,0.5]
[1642098215427,5.98018,3295.1,3295.0,0.5]
[1642098215628,23.81018,3295.1,3295.0,0.5]
[1642098215828,5.98018,3295.1,3295.0,0.5]
[1642098217027,23.81018,3295.1,3295.0,0.5]
[1642098217628,5.98018,3295.1,3295.0,0.5]
[1642098219080,5.98018,3295.1,3294.2,0.1213]
[1642098219379,0.75886,3294.8,3294.3,0.00454739]
[1642098219579,1.05886,3294.8,3294.3,0.00454739]
[1642098219982,0.75886,3294.8,3294.3,0.00454739]
[1642098220379,1.05886,3294.8,3294.3,0.76331489]
[1642098220779,1.05886,3294.8,3294.4,0.00397896]
[1642098221180,2.60894378,3294.7,3294.4,0.00397896]
[1642098221382,2.60894378,3294.7,3294.5,0.1213]
[1642098221781,2.60894378,3294.7,3294.6,9.70284212]
[1642098221983,2.60894378,3294.7,3294.6,9.82414212]
[1642098222923,2.60894378,3294.7,3294.6,10.58280212]
[1642098223125,2.60894378,3294.7,3294.6,11.02280212]
[1642098223424,2.60894378,3295.1,3294.6,16.95553486]
[1642098223623,4.378e-05,3295.1,3294.7,1.1213]
[1642098223823,4.378e-05,3295.1,3294.9,0.58992673]
[1642098224023,4.378e-05,3295.1,3295.0,10.9113]
[1642098224425,1.56526054,3295.8,3295.0,11.16981]
[1642098224625,1.56526054,3295.8,3295.1,1.0]
[1642098224824,0.1213,3296.1,3295.2,8.89344398]
[1642098225024,0.1213,3296.1,3295.2,9.19344398]
[1642098225329,0.1213,3296.1,3295.2,10.98044398]
[1642098225524,0.1213,3296.1,3295.2,11.42044398]
[1642098225979,0.04156996,3296.1,3295.6,0.758411]
[1642098226172,0.04156996,3296.1,3295.5,1.516822]
[1642098226173,0.04156996,3296.1,3295.7,0.83813]
[1642098226373,0.00397896,3296.0,3295.7,0.75842]
[1642098226673,0.00341054,3295.9,3295.8,0.07971]
[1642098226873,0.00341054,3295.9,3295.8,4.23260428]
[1642098227073,0.00341054,3295.9,3295.8,1.18260428]
[1642098227273,0.00341054,3295.9,3295.8,1.94101678]
[1642098227474,0.00341054,3295.9,3295.8,1.89101678]
[1642098229922,0.00341054,3295.9,3295.8,1.18260428]
[1642098231127,0.00341054,3295.9,3295.8,0.07971]
[1642098232928,11.29351134,3295.9,3295.8,0.07971]
[1642098233135,11.29351134,3295.9,3295.0,1.5171283]
[1642098233136,11.41481134,3295.9,3295.0,1.5171283]
[1642098233328,0.7587,3295.5,3294.9,0.7586876]
[1642098233579,0.7587,3295.5,3295.1,0.00113685]
[1642098233580,4.24396977,3295.4,3295.1,0.00113685]
[1642098233781,0.1213,3295.4,3295.0,0.00170527]
[1642098233974,0.1213,3295.4,3294.9,0.0022737]
[1642098234175,5.55391242,3295.7,3294.8,0.00284212]
[1642098234176,0.1213,3295.6,3294.8,0.00284212]
[1642098234575,0.00113684,3295.5,3294.8,0.00284212]
[1642098234876,0.75879,3295.3,3294.8,0.00284212]
[1642098235075,0.6,3295.3,3294.8,0.00284212]
[1642098235276,0.1213,3295.2,3294.8,0.00284212]
[1642098235477,1.17614401,3295.2,3294.7,0.00341054]
[1642098235681,1.17614401,3295.2,3294.3,0.1213]
[1642098235682,0.75886,3295.0,3294.5,0.00454739]
[1642098235876,4.60575066,3294.9,3294.4,0.00511581]
[1642098236077,1.05888,3294.8,3294.4,0.00511581]
[1642098236276,5.46953558,3294.7,3294.4,0.00511581]
[1642098236476,5.76953558,3294.7,3294.4,0.00511581]
[1642098236877,5.76953558,3294.7,3293.8,0.70539608]
[1642098236878,5.76953558,3294.7,3293.9,0.00795793]
[1642098237078,5.76953558,3294.7,3294.0,0.7589264]
[1642098237522,5.76953558,3294.7,3294.1,0.00682108]
[1642098238123,6.52843558,3294.7,3294.1,0.00682108]
[1642098238326,6.5613833,3294.7,3294.1,0.00682108]
[1642098238523,6.47843558,3294.7,3294.1,0.00682108]
[1642098238923,7.99634558,3294.7,3294.1,0.00682108]
[1642098239126,1.0,3294.6,3294.1,0.00682108]
[1642098239324,4.87299226,3294.5,3294.1,0.00682108]
[1642098239524,5.17299226,3294.5,3293.9,0.00795793]
[1642098240425,0.75905,3294.3,3293.9,0.00795793]
[1642098240626,4.5198514,3294.2,3293.6,0.0096632]
[1642098240827,1.36196143,3293.7,3293.6,0.0096632]
[1642098241680,2.42006143,3293.7,3293.6,0.0096632]
[1642098242380,2.84136143,3293.7,3293.6,0.0096632]
[1642098242578,3.84136143,3293.7,3293.6,0.0096632]
[1642098242778,7.14136143,3293.7,3293.6,0.0096632]
[1642098242978,8.14136143,3293.7,3293.6,0.0096632]
[1642098243782,12.9435784,3293.7,3293.6,0.0096632]
[1642098244827,13.2435784,3293.7,3293.6,0.0096632]
[1642098245023,15.85333215,3293.7,3293.6,0.0096632]
[1642098245827,15.55333215,3293.7,3293.6,0.0096632]
[1642098246225,11.25333215,3293.7,3293.6,0.0096632]
[1642098246825,29.38333215,3293.7,3293.6,0.0096632]
[1642098247130,11.25333215,3293.7,3293.6,0.0096632]
[1642098247329,10.25333215,3293.7,3293.6,0.0096632]
[1642098248588,10.13203215,3293.7,3293.6,0.0096632]
[1642098248781,11.25333215,3293.7,3293.6,0.0096632]
[1642098249182,29.80833215,3293.7,3293.6,0.0096632]
[1642098249383,29.8422804,3293.7,3293.6,0.0096632]
[1642098249583,12.0122804,3293.7,3293.6,0.0096632]
[1642098249982,29.8422804,3293.7,3293.6,0.0096632]
[1642098250383,29.8422804,3293.7,3292.4,0.1214]
[1642098250384,10.35,3293.6,3292.4,0.1214]
[1642098250583,0.75946,3293.0,3292.4,0.1214]
[1642098250784,4.49457313,3292.9,3292.5,0.00625266]
[1642098251187,4.79457313,3292.9,3292.5,0.00625266]
[1642098251385,18.9513,3292.8,3292.5,0.00625266]
[1642098251584,17.83,3292.6,3292.5,0.00625266]
[1642098251785,17.9513,3292.6,3292.5,0.00625266]
[1642098251986,18.9513,3292.6,3292.5,0.00625266]
[1642098253027,19.45101159,3292.6,3292.5,0.00625266]
[1642098253832,0.75971,3292.4,3291.3,0.1214]
[1642098254030,17.83,3292.1,3290.8,0.1215]
[1642098254227,5.13472498,3292.0,3291.4,0.00625266]
[1642098254429,6.13472498,3292.0,3291.4,0.00625266]
[1642098254628,5.13472498,3292.0,3291.4,0.00625266]
[1642098254830,1.5193,3292.4,3291.4,0.00625266]
[1642098254831,15.34633961,3292.6,3291.5,1.22542184]
[1642098255029,3.98219972,3292.5,3291.5,1.22542184]
[1642098255230,3.98219972,3292.5,3291.6,0.00511581]
[1642098255430,2.60975375,3291.9,3291.7,0.1215]
[1642098255829,2.60975375,3291.9,3291.8,0.00397896]
[1642098256481,1.6,3291.9,3291.8,0.00397896]
[1642098256678,0.6,3291.9,3291.8,0.00397896]
[1642098257579,0.3,3291.9,3291.8,0.00397896]
[1642098257778,3.20975375,3291.9,3291.8,0.00397896]
[1642098257978,2.90975375,3291.9,3291.8,0.00397896]
[1642098258181,3.90975375,3291.9,3291.8,0.00397896]
[1642098258381,2.90975375,3291.9,3291.8,0.00397896]
[1642098258582,4.03125375,3291.9,3291.8,0.00397896]
[1642098258781,3.03125375,3291.9,3291.8,0.00397896]
[1642098258984,7.99509514,3291.9,3291.8,0.00397896]
[1642098259724,4.25,3291.8,3291.7,0.1215]
[1642098259925,9.79442872,3291.8,3291.7,0.1215]
[1642098260825,12.40418247,3291.8,3291.7,0.1215]
[1642098261023,8.15975375,3291.8,3291.7,0.1215]
[1642098261424,3.90975375,3291.8,3291.7,0.1215]
[1642098261627,8.0150348,3291.8,3291.7,0.1215]
[1642098261824,8.02181114,3291.8,3291.7,0.1215]
[1642098262024,8.22891788,3291.8,3291.7,0.1215]
[1642098262226,3.90975375,3291.8,3291.7,0.1215]
[1642098262428,3.90975375,3291.8,3290.9,0.1215]
[1642098262429,0.3,3291.7,3290.9,0.1215]
[1642098262625,2.60975375,3291.8,3290.9,0.1215]
[1642098262827,2.60975375,3291.8,3291.0,0.00454739]
[1642098263026,2.60975375,3291.8,3291.1,0.5615]
[1642098263227,2.60975375,3291.8,3291.5,0.57382537]
[1642098263479,2.60975375,3291.8,3291.6,0.5615]
[1642098263676,2.60975375,3291.8,3291.6,0.56263685]
[1642098264074,2.60975375,3292.1,3291.6,0.56263685]
[1642098264278,2.60975375,3292.1,3291.6,1.32191425]
[1642098264475,0.00113684,3292.0,3291.6,1.32191425]
[1642098264676,0.00113684,3292.0,3291.6,0.56263685]
[1642098265576,1.12150974,3291.7,3291.6,0.44113685]
[1642098265779,1.12150974,3291.7,3291.6,0.00113685]
[1642098265978,1.42150974,3291.7,3291.6,0.00113685]
[1642098266377,1.54300974,3291.7,3291.6,0.00113685]
[1642098266577,9.49253287,3291.7,3291.6,0.00113685]
[1642098266782,5.12150974,3291.7,3291.6,0.00113685]
[1642098267426,7.73126349,3291.7,3291.6,0.00113685]
[1642098267826,7.85276349,3291.7,3291.6,0.00113685]
[1642098268025,8.85276349,3291.7,3291.6,0.00113685]
[1642098269431,7.85276349,3291.7,3291.6,0.00113685]
[1642098269835,4.15276349,3291.7,3291.6,0.00113685]
[1642098271180,5.15276349,3291.7,3291.6,0.00113685]
[1642098271379,5.45276349,3291.7,3291.6,0.00113685]
[1642098273380,11.40276349,3291.7,3291.6,0.00113685]
[1642098273578,9.60049085,3291.7,3291.6,0.00113685]
[1642098273778,5.45276349,3291.7,3291.6,0.00113685]
[1642098273980,3.85276349,3291.7,3291.6,0.00113685]
[1642098275028,7.95621552,3291.7,3291.6,0.00113685]
[1642098275529,9.55621552,3291.7,3291.6,0.00113685]
[1642098275929,8.25621552,3291.7,3291.6,0.00113685]
[1642098278498,11.65621552,3291.7,3291.6,0.00113685]
[1642098278687,8.25621552,3291.7,3291.6,0.00113685]
[1642098279289,8.13471552,3291.7,3291.6,0.00113685]
[1642098279787,10.7013837,3291.7,3291.6,0.00113685]
[1642098279991,10.6944177,3291.7,3291.6,0.00113685]
[1642098280189,4.17642193,3291.7,3291.6,0.00113685]
[1642098280588,2.60975375,3291.7,3291.6,0.12263685]
[1642098280791,2.60975375,3291.7,3291.6,0.1215]
[1642098281088,2.60975375,3291.7,3291.6,0.00113685]
[1642098281487,2.60975375,3291.7,3291.5,0.7594065]
[1642098281688,0.00113684,3292.0,3291.6,2.90113685]
[1642098281888,0.00113684,3292.0,3291.7,0.58705358]
[1642098282530,0.00113684,3292.0,3291.7,1.34642808]
[1642098282928,0.00113684,3292.0,3291.7,1.30225195]